bitfinex/quotes_BTCUSD_20250331
["timestamp","ask_amount","ask_price","bid_price","bid_amount"]
[1743382540191,0.01934256,81710.0,81706.0,0.012239]
[1743382540396,0.01934256,81710.0,81708.0,0.012238]
[1743382540608,0.01934256,81710.0,81709.0,0.003]
[1743382540846,0.01934256,81710.0,81709.0,0.0583759]
[1743382541058,0.01934256,81710.0,81709.0,0.0553759]
[1743382541707,0.01934256,81710.0,81709.0,0.3123849]
[1743382543102,0.01934256,81710.0,81709.0,0.3153849]
[1743382545053,0.01934256,81710.0,81709.0,0.82582575]
[1743382545291,0.03243177,81725.0,81724.0,0.34810285]
[1743382545292,0.02,81725.0,81724.0,0.34810285]
[1743382545522,0.02,81725.0,81724.0,1.13786285]
[1743382546483,0.021,81725.0,81724.0,1.13786285]
[1743382546721,0.021,81725.0,81724.0,1.25814768]
[1743382547247,0.02,81725.0,81724.0,1.25814768]
[1743382547491,0.02,81725.0,81724.0,1.31874768]
[1743382547713,0.02,81725.0,81724.0,1.31374768]
[1743382548920,0.02,81725.0,81724.0,1.33824588]
[1743382550014,0.02,81725.0,81724.0,1.34324588]
[1743382550900,1e-06,81725.0,81724.0,1.78754588]
[1743382551157,3e-07,81735.0,81734.0,0.26193]
[1743382551402,2.1e-07,81737.0,81736.0,0.10837485]
[1743382551639,0.00354969,81752.0,81751.0,0.256877]
[1743382551874,0.00354969,81752.0,81751.0,0.50181785]
[1743382553259,0.00354969,81752.0,81751.0,0.336477]
[1743382553511,0.00354969,81752.0,81751.0,0.50685885]
[1743382554225,0.00354969,81752.0,81751.0,0.5317079]
[1743382554450,0.00354969,81752.0,81751.0,0.3779479]
[1743382554682,0.00354969,81752.0,81751.0,0.50685885]
[1743382554886,0.02271399,81752.0,81751.0,0.50685885]
[1743382557137,0.00354969,81752.0,81751.0,0.50685885]
[1743382557341,0.00354969,81752.0,81751.0,0.5213997]
[1743382557594,0.00354969,81752.0,81751.0,0.50685885]
[1743382559700,0.004,81759.0,81751.0,0.50685885]
[1743382559701,0.3,82180.0,81756.0,0.256858]
[1743382559953,0.01223,81763.0,81757.0,0.05968789]
[1743382560186,0.012229,81768.0,81759.0,0.256851]
[1743382560432,0.01916349,81762.0,81761.0,0.01223]
[1743382560667,0.01916349,81762.0,81761.0,0.05978609]
[1743382561590,0.01916349,81762.0,81761.0,0.30440109]
[1743382561823,0.01916349,81762.0,81761.0,0.31663109]
[1743382562059,0.01916349,81762.0,81761.0,0.05978609]
[1743382562288,0.01916349,81762.0,81757.0,0.21340789]
[1743382562524,0.03139349,81762.0,81757.0,0.21340789]
[1743382563746,0.244615,81761.0,81757.0,0.21340789]
[1743382564135,0.256845,81761.0,81757.0,0.21340789]
[1743382564999,0.03139349,81762.0,81757.0,0.21340789]
[1743382565211,0.01223,81761.0,81758.0,0.07271379]
[1743382565626,0.03139349,81762.0,81758.0,0.07271379]
[1743382565830,0.01916349,81762.0,81758.0,0.07271379]
[1743382566248,0.01916349,81762.0,81759.0,0.254852]
[1743382566453,0.01916349,81762.0,81760.0,0.10791547]
[1743382567076,0.3243834,81768.0,81760.0,0.10791547]
[1743382567898,0.3121544,81768.0,81762.0,0.244611]
[1743382568032,0.0121544,81768.0,81767.0,0.012229]
[1743382568234,0.3,81774.0,81771.0,0.256812]
[1743382568576,0.3,81774.0,81772.0,0.0525869]
[1743382569299,0.3,81777.0,81772.0,0.0525869]
[1743382569526,0.30047213,81777.0,81772.0,0.0525869]
[1743382570061,0.30047213,81777.0,81775.0,0.256801]
[1743382570062,0.01916255,81776.0,81775.0,0.256801]
[1743382571097,0.01916255,81776.0,81774.0,0.012228]
[1743382571303,0.01916255,81776.0,81775.0,0.1135061]
[1743382571503,0.01916255,81776.0,81775.0,0.3703071]
[1743382572657,0.01916255,81776.0,81775.0,0.256801]
[1743382572894,0.01916255,81776.0,81775.0,0.398253]
[1743382573102,0.01916255,81776.0,81775.0,0.410481]
[1743382573303,0.01916255,81776.0,81775.0,0.244573]
[1743382573713,0.01916255,81776.0,81775.0,0.256801]
[1743382573921,0.01916255,81776.0,81775.0,0.37708583]
[1743382574359,0.01911255,81776.0,81775.0,0.37708583]
[1743382574948,0.0001681,81780.0,81775.0,0.37708583]
[1743382574949,7.8e-07,81780.0,81779.0,0.256789]
[1743382575121,0.00014233,81780.0,81779.0,0.27132985]
[1743382575321,0.00014233,81780.0,81779.0,0.39161468]
[1743382575522,0.00014233,81780.0,81779.0,0.46721468]
[1743382576123,3.3e-07,81780.0,81779.0,0.47221468]
[1743382576928,1.3e-07,81792.0,81789.0,0.25907185]
[1743382577139,4.3e-07,81794.0,81793.0,0.34688485]
[1743382577336,6.3e-07,81801.0,81800.0,0.244498]
[1743382577545,6.3e-07,81801.0,81800.0,1.32596285]
[1743382578871,6.3e-07,81801.0,81800.0,1.34987217]
[1743382579082,6.3e-07,81801.0,81800.0,1.45069872]
[1743382579698,6.3e-07,81801.0,81800.0,1.52629872]
[1743382580136,6.3e-07,81801.0,81800.0,1.64658355]
[1743382580344,6.3e-07,81801.0,81800.0,1.65158355]
[1743382580780,6.781e-05,81807.0,81806.0,0.261704]
[1743382580985,6.781e-05,81807.0,81806.0,0.96938968]
[1743382580986,0.00020934,81807.0,81806.0,0.96938968]
[1743382581205,0.00020934,81807.0,81806.0,1.04498968]
[1743382581418,3.4e-07,81807.0,81806.0,1.53647451]
[1743382581639,3.4e-07,81819.0,81818.0,0.261666]
[1743382581855,3.4e-07,81819.0,81818.0,0.35180685]
[1743382582073,3.4e-07,81819.0,81818.0,0.45625257]
[1743382582693,3.4e-07,81819.0,81818.0,0.44082223]
[1743382582920,3.4e-07,81819.0,81818.0,0.58938223]
[1743382583367,3.4e-07,81819.0,81818.0,0.61371501]
[1743382583783,3.4e-07,81819.0,81818.0,0.73899984]
[1743382584873,3.4e-07,81819.0,81818.0,1.15829984]
[1743382587072,3.4e-07,81819.0,81818.0,0.87945501]
[1743382587278,3.4e-07,81819.0,81818.0,1.03297501]
[1743382587863,3.4e-07,81819.0,81818.0,0.87945501]
[1743382588081,3.4e-07,81819.0,81818.0,1.03297501]
[1743382589072,3.4e-07,81819.0,81818.0,1.03797501]
[1743382589301,3.4e-07,81819.0,81818.0,1.15825984]
[1743382589540,3.4e-07,81819.0,81818.0,1.48325984]
[1743382592228,0.3,81852.0,81845.0,0.256581]
[1743382592469,0.3,81852.0,81847.0,0.244357]
[1743382592470,0.00551555,81851.0,81847.0,0.244357]
[1743382592712,0.3,81852.0,81847.0,0.244357]
[1743382592940,0.3,81852.0,81849.0,0.256567]
[1743382593171,0.00551468,81851.0,81850.0,0.012217]
[1743382593435,0.00014155,81853.0,81852.0,0.012217]
[1743382593634,0.00014155,81853.0,81852.0,0.02675785]
[1743382594512,0.00014155,81853.0,81852.0,0.44605785]
[1743382594738,6.5e-07,81858.0,81857.0,0.27108485]
[1743382595603,0.01930616,81883.0,81863.0,0.256525]
[1743382595604,6.5e-07,81864.0,81863.0,0.256525]
[1743382595811,6.5e-07,81864.0,81863.0,0.69036585]
[1743382596294,6.5e-07,81864.0,81863.0,0.69536585]
[1743382596501,6.5e-07,81864.0,81863.0,0.78438123]
[1743382597139,6.5e-07,81864.0,81863.0,0.80915732]
[1743382597353,6.5e-07,81864.0,81863.0,0.9665986]
[1743382598811,6.5e-07,81879.0,81878.0,0.256478]
[1743382599018,0.00047222,81879.0,81878.0,1.05921885]
[1743382599229,0.00047222,81879.0,81878.0,1.14257149]
[1743382600339,0.00047222,81879.0,81878.0,0.98917149]
[1743382600546,0.00047222,81879.0,81878.0,1.14257149]
[1743382600776,0.00047222,81879.0,81878.0,0.97463064]
[1743382600967,0.00047222,81879.0,81878.0,1.12803064]
[1743382601141,0.00047222,81879.0,81878.0,1.12799064]
[1743382601354,0.00047222,81879.0,81878.0,1.044638]
[1743382602219,0.00047222,81879.0,81878.0,0.6348]
[1743382602640,0.00630089,81879.0,81878.0,0.6348]
[1743382603529,0.00630089,81879.0,81878.0,0.891278]
[1743382603708,0.00630089,81879.0,81878.0,1.01156283]
[1743382603910,0.00047222,81879.0,81878.0,1.01156283]
[1743382604746,0.00047222,81879.0,81878.0,0.647013]
[1743382604946,0.00047222,81879.0,81878.0,0.891278]
[1743382606235,0.01268522,81879.0,81878.0,0.6348]
[1743382606443,0.00627086,81879.0,81878.0,0.6348]
[1743382606800,0.00643876,81879.0,81878.0,0.6348]
[1743382608033,0.00643876,81879.0,81878.0,0.76729783]
[1743382608239,0.00064012,81879.0,81878.0,0.76729783]
[1743382608700,0.00064012,81879.0,81878.0,0.6348]
[1743382609524,0.00643876,81879.0,81878.0,0.6348]
[1743382609733,0.01865176,81879.0,81878.0,0.6348]
[1743382610800,0.14905176,81879.0,81878.0,0.6348]
[1743382611410,0.44905176,81879.0,81878.0,0.6348]
[1743382612426,0.4734301,81879.0,81878.0,0.6348]
[1743382612605,0.44905176,81879.0,81878.0,0.6348]
[1743382613643,0.47309471,81879.0,81878.0,0.6348]
[1743382615112,0.36595176,81879.0,81878.0,0.6348]
[1743382615289,0.30643876,81879.0,81878.0,0.647013]
[1743382615494,0.30643876,81879.0,81878.0,0.6348]
[1743382615706,0.56291376,81879.0,81878.0,0.6348]
[1743382615933,0.00643876,81879.0,81878.0,0.6348]
[1743382616185,0.00643876,81879.0,81878.0,0.726371]
[1743382616418,0.00643876,81879.0,81878.0,0.970636]
[1743382616626,0.00643876,81879.0,81877.0,0.012213]
[1743382616826,0.00643876,81879.0,81878.0,0.256478]
[1743382617348,0.00643876,81879.0,81876.0,0.012213]
[1743382617563,0.25070276,81879.0,81874.0,0.256489]
[1743382617769,0.012213,81878.0,81872.0,0.012214]
[1743382618182,0.00577081,81877.0,81873.0,0.36456483]
[1743382618372,0.00577081,81877.0,81873.0,0.24428]
[1743382618570,0.02446962,81878.0,81873.0,0.24428]
[1743382619038,0.00577081,81877.0,81873.0,0.24428]
[1743382619341,0.03042164,81877.0,81874.0,0.012213]
[1743382619546,0.03042164,81877.0,81874.0,0.1044906]
[1743382619949,0.03042164,81877.0,81872.0,0.012214]
[1743382620152,0.27468964,81877.0,81871.0,0.244286]
[1743382620321,0.012213,81874.0,81870.0,0.15324]
[1743382620513,0.256493,81874.0,81870.0,0.2589048]
[1743382620744,0.012214,81871.0,81867.0,0.78792]
[1743382621110,0.012213,81874.0,81868.0,0.012214]
[1743382621315,0.00064012,81879.0,81876.0,0.012213]
[1743382621518,0.01285312,81879.0,81871.0,0.012214]
[1743382621726,0.012213,81878.0,81872.0,0.256497]
[1743382622359,0.01285312,81879.0,81874.0,0.25649]
[1743382622574,0.00577081,81877.0,81876.0,0.012213]
[1743382622775,0.00574748,81878.0,81876.0,0.256482]
[1743382622985,0.00064012,81879.0,81877.0,0.256479]
[1743382623160,0.00064012,81879.0,81878.0,0.012213]
[1743382623398,0.00064012,81879.0,81877.0,0.012213]
[1743382623580,0.00064012,81879.0,81876.0,0.256482]
[1743382623812,0.00064012,81879.0,81877.0,0.012213]
[1743382624313,0.00064012,81879.0,81878.0,0.256478]
[1743382624705,0.00064012,81879.0,81875.0,0.256487]
[1743382624706,0.00064012,81879.0,81876.0,0.256482]
[1743382624906,0.00064012,81879.0,81878.0,0.256478]
[1743382625333,0.00064012,81879.0,81878.0,0.3346441]
[1743382627389,0.00064012,81879.0,81878.0,0.256478]
[1743382629048,0.00555296,81879.0,81878.0,0.256478]
[1743382629253,0.012213,81878.0,81871.0,0.012214]
[1743382629459,0.00064012,81879.0,81878.0,0.1532]
[1743382629640,0.00555296,81879.0,81878.0,0.1532]
[1743382630817,0.00555296,81879.0,81874.0,0.012213]
[1743382631026,0.26203096,81879.0,81875.0,0.1532]
[1743382631285,0.244274,81875.0,81872.0,0.0003356]
[1743382631481,0.256492,81874.0,81873.0,0.1532]
[1743382631685,0.012214,81873.0,81872.0,0.0003356]
[1743382631918,0.244274,81875.0,81872.0,0.1535356]
[1743382632447,0.00490143,81874.0,81872.0,0.1535356]
[1743382633078,0.256494,81873.0,81872.0,0.0003356]
[1743382633525,0.26139543,81873.0,81872.0,0.0003356]
[1743382633760,0.00490143,81873.0,81872.0,0.0003356]
[1743382634184,0.244265,81878.0,81872.0,0.0003356]
[1743382634400,0.06221543,81873.0,81872.0,0.0003356]
[1743382634525,0.057314,81873.0,81872.0,0.0003356]
[1743382634742,0.06220056,81873.0,81872.0,0.0003356]
[1743382634946,0.01710056,81873.0,81872.0,0.0003356]
[1743382636456,0.00488656,81873.0,81872.0,0.0003356]
[1743382636663,0.544269,81877.0,81872.0,0.01595039]
[1743382636825,0.244278,81874.0,81872.0,0.01595039]
[1743382637027,0.244278,81874.0,81872.0,0.0003356]
[1743382637028,0.012214,81873.0,81872.0,0.0003356]
[1743382637249,0.10028197,81873.0,81872.0,0.0003356]
[1743382637789,0.01708197,81873.0,81872.0,0.0003356]
[1743382638437,0.06218197,81873.0,81872.0,0.0003356]
[1743382639238,0.36218197,81873.0,81872.0,0.0003356]
[1743382640043,0.38132046,81873.0,81872.0,0.0003356]
[1743382640431,0.38132046,81873.0,81864.0,0.6346]
[1743382640432,0.556519,81865.0,81864.0,0.6346]
[1743382640648,0.56128641,81865.0,81864.0,0.6346]
[1743382641708,0.58536022,81865.0,81864.0,0.6346]
[1743382642782,0.244373,81842.0,81834.0,0.012219]
[1743382642997,0.256591,81842.0,81841.0,1.24907]
[1743382643159,0.256591,81842.0,81841.0,0.63468]
[1743382643364,0.26133785,81842.0,81841.0,0.63468]
[1743382643566,0.256622,81833.0,81832.0,0.63468]
[1743382643797,0.256622,81833.0,81818.0,0.0003358]
[1743382643798,0.256664,81819.0,81818.0,0.10809922]
[1743382644070,0.556664,81819.0,81818.0,0.10809922]
[1743382644184,0.56137366,81819.0,81818.0,0.10473335]
[1743382644882,0.58052392,81819.0,81818.0,0.10473335]
[1743382645225,0.58052392,81819.0,81818.0,0.11520669]
[1743382645813,0.57581426,81819.0,81818.0,0.11520669]
[1743382646012,0.57581426,81819.0,81818.0,0.10473335]
[1743382647111,0.556664,81819.0,81818.0,0.10473335]
[1743382647475,0.556664,81819.0,81818.0,0.00014155]
[1743382648267,0.3,81819.0,81818.0,0.00014155]
[1743382648483,0.14908428,81828.0,81818.0,0.01236355]
[1743382648484,0.244424,81825.0,81818.0,0.01236355]
[1743382648911,0.244431,81823.0,81818.0,0.00014155]
[1743382649118,0.244436,81821.0,81818.0,0.00014155]
[1743382649326,0.244442,81819.0,81818.0,0.00014155]
[1743382649552,0.244436,81821.0,81819.0,0.00824415]
[1743382649553,0.256657,81821.0,81819.0,0.00824415]
[1743382650923,0.244442,81819.0,81818.0,0.00014155]
[1743382651134,0.244442,81819.0,81818.0,0.19724155]
[1743382651333,0.256664,81819.0,81818.0,0.19724155]
[1743382652541,0.3,81820.0,81818.0,0.19724155]
[1743382652747,0.244442,81819.0,81818.0,0.24385641]
[1743382652951,0.3,81820.0,81818.0,0.24385641]
[1743382653158,0.55666,81820.0,81818.0,0.24385641]
[1743382653377,0.012222,81819.0,81818.0,0.19724155]
[1743382653783,0.244409,81830.0,81818.0,0.00014155]
[1743382654050,0.01914879,81826.0,81825.0,0.256645]
[1743382654254,0.01914879,81826.0,81825.0,0.0525517]
[1743382654663,0.27579279,81826.0,81819.0,0.012222]
[1743382654877,0.27579279,81826.0,81820.0,0.1532]
[1743382655087,0.244427,81824.0,81820.0,0.1532]
[1743382655635,0.244427,81824.0,81818.0,0.00014155]
[1743382655636,0.244433,81822.0,81818.0,0.00014155]
[1743382655831,0.244439,81820.0,81819.0,0.1532]
[1743382656043,0.25666,81820.0,81819.0,0.1532]
[1743382657027,0.012222,81819.0,81818.0,0.00047735]
[1743382658180,0.25666,81820.0,81818.0,0.00047735]
[1743382658380,0.244433,81822.0,81819.0,0.04103153]
[1743382658601,0.012221,81823.0,81819.0,0.04103153]
[1743382660304,0.03136964,81823.0,81819.0,0.04103153]
[1743382660501,0.012221,81821.0,81819.0,0.04103153]
[1743382661094,0.25666,81820.0,81819.0,0.04103153]
[1743382661691,0.012222,81819.0,81818.0,0.00047735]
[1743382663059,0.25666,81820.0,81818.0,0.00047735]
[1743382664803,0.01914864,81823.0,81818.0,0.00047735]
[1743382664959,0.244431,81823.0,81818.0,0.01269935]
[1743382665162,0.012221,81820.0,81818.0,0.00047735]
[1743382665381,0.012221,81823.0,81819.0,0.12028483]
[1743382665954,0.256654,81822.0,81819.0,0.12028483]
[1743382666160,0.012222,81819.0,81818.0,0.00047735]
[1743382667661,0.25666,81820.0,81818.0,0.00047735]
[1743382668028,0.012222,81819.0,81818.0,0.00047735]
[1743382668245,0.3,81825.0,81821.0,0.256656]
[1743382668622,0.0001679,81823.0,81821.0,0.256656]
[1743382668822,0.0001679,81823.0,81818.0,0.00047735]
[1743382668823,0.0001679,81823.0,81819.0,0.256664]
[1743382669310,0.0001679,81823.0,81820.0,0.03749551]
[1743382669513,0.06410742,81824.0,81820.0,0.03749551]
[1743382669909,0.07632842,81824.0,81820.0,0.03749551]
[1743382670837,0.256646,81825.0,81820.0,0.03749551]
[1743382671805,0.244433,81822.0,81820.0,0.03749551]
[1743382672009,0.012221,81823.0,81821.0,0.03190859]
[1743382672209,0.012221,81823.0,81820.0,0.03749551]
[1743382672998,0.012221,81825.0,81820.0,0.03749551]
[1743382673199,0.0001679,81826.0,81821.0,0.244436]
[1743382673481,0.3001679,81826.0,81822.0,0.012221]
[1743382673680,0.0001679,81826.0,81823.0,0.06979499]
[1743382673797,0.0001679,81826.0,81823.0,0.05757399]
[1743382674645,0.0001679,81826.0,81825.0,0.256645]
[1743382675420,0.012221,81825.0,81820.0,0.03749551]
[1743382675624,0.012221,81825.0,81824.0,0.15308]
[1743382675822,0.2445909,81826.0,81824.0,0.15308]
[1743382675823,0.2568119,81826.0,81824.0,0.15308]
[1743382676074,0.012221,81825.0,81824.0,0.15308]
[1743382676273,0.2568119,81826.0,81824.0,0.15308]
[1743382676464,0.2445909,81826.0,81824.0,0.15308]
[1743382676681,0.2568119,81826.0,81824.0,0.15308]
[1743382677086,0.0001679,81826.0,81825.0,0.0544174]
[1743382678423,0.0001679,81826.0,81825.0,0.05237803]
[1743382678901,0.0001679,81826.0,81825.0,0.05088825]
[1743382680109,0.01931436,81826.0,81825.0,0.05088825]
[1743382681486,0.0001679,81826.0,81825.0,0.05088825]
[1743382681692,0.01931457,81826.0,81825.0,0.1286322]
[1743382681889,0.0001679,81826.0,81825.0,0.5600291]
[1743382682100,0.0001679,81826.0,81825.0,0.69852825]
[1743382682310,0.0001679,81826.0,81825.0,0.54548825]
[1743382682517,0.0001679,81826.0,81825.0,0.69852825]
[1743382682734,0.0001679,81826.0,81825.0,0.54548825]
[1743382682952,0.0001679,81826.0,81825.0,0.4193]
[1743382683171,0.0001679,81826.0,81825.0,0.584561]
[1743382685445,0.0123889,81826.0,81825.0,0.4193]
[1743382685878,0.0123889,81826.0,81813.0,0.30188]
[1743382685879,0.24445,81816.0,81814.0,0.18728675]
[1743382686095,0.0123889,81826.0,81815.0,0.41517448]
[1743382686325,0.0001679,81826.0,81821.0,0.244435]
[1743382686532,0.01914816,81824.0,81822.0,0.012221]
[1743382686739,0.01914816,81824.0,81823.0,0.256651]
[1743382687836,0.0001679,81826.0,81823.0,0.256651]
[1743382687837,0.0001679,81826.0,81825.0,0.256645]
[1743382690807,0.01931513,81826.0,81825.0,0.256645]
[1743382690991,0.00841669,81832.0,81825.0,0.256645]
[1743382691190,0.00624289,81833.0,81825.0,0.256645]
[1743382691394,0.01222,81832.0,81826.0,0.012221]
[1743382691608,0.00014137,81833.0,81831.0,0.244406]
[1743382691811,0.00014137,81833.0,81832.0,0.256623]
[1743382692432,0.00014137,81833.0,81830.0,0.244406]
[1743382692589,0.00014137,81833.0,81827.0,0.34241755]
[1743382692789,0.00014137,81833.0,81828.0,0.06650586]
[1743382693435,0.244424,81825.0,81821.0,0.635]
[1743382693595,0.244418,81827.0,81821.0,0.635]
[1743382693596,0.01222,81829.0,81821.0,0.635]
[1743382693795,0.244417,81828.0,81822.0,0.244432]
[1743382693993,0.01222,81829.0,81825.0,0.0003364]
[1743382694200,0.012221,81826.0,81825.0,0.0003364]
[1743382694399,0.0123892,81826.0,81825.0,0.0003364]
[1743382695040,0.0001682,81826.0,81825.0,0.0003364]
[1743382695269,0.0001682,81826.0,81825.0,0.06387004]
[1743382696090,0.0001682,81826.0,81825.0,0.30829404]
[1743382696304,0.0001682,81826.0,81825.0,0.32051504]
[1743382697942,0.0001682,81826.0,81825.0,0.06387004]
[1743382698140,0.0001682,81826.0,81825.0,0.0003364]
[1743382698726,0.2445892,81826.0,81825.0,0.0003364]
[1743382699153,0.0001682,81826.0,81825.0,0.0003364]
[1743382699905,0.0193162,81826.0,81825.0,0.0003364]
[1743382700751,0.2637372,81826.0,81825.0,0.0003364]
[1743382701435,0.0315372,81826.0,81825.0,0.0003364]
[1743382701599,0.0001682,81826.0,81825.0,0.0003364]
[1743382701814,0.0001682,81826.0,81825.0,0.28268044]
[1743382703038,0.0001682,81826.0,81825.0,0.03825644]
[1743382703451,0.0001682,81826.0,81825.0,0.28268044]
[1743382703613,0.0001682,81826.0,81825.0,0.02603544]
[1743382704997,0.01931578,81826.0,81825.0,0.02603544]
[1743382705603,0.01931578,81826.0,81825.0,0.28268044]
[1743382707127,0.0001682,81826.0,81825.0,0.28268044]
[1743382709049,0.0001682,81826.0,81825.0,0.02603544]
[1743382710128,0.01931528,81826.0,81825.0,0.02603544]
[1743382710271,0.03153628,81826.0,81825.0,0.0003364]
[1743382713387,0.33153628,81826.0,81825.0,0.0003364]
[1743382714234,0.31931528,81826.0,81825.0,0.0003364]
[1743382714625,0.33153628,81826.0,81825.0,0.0003364]
[1743382714836,0.33153628,81826.0,81825.0,0.06387004]
[1743382715497,0.33153628,81826.0,81825.0,0.0003364]
[1743382717079,0.3123892,81826.0,81825.0,0.0003364]
[1743382718495,0.09954216,81826.0,81825.0,0.0003364]
[1743382718707,0.012221,81826.0,81825.0,0.0003364]
[1743382720055,0.03137042,81826.0,81825.0,0.0003364]
[1743382723302,0.33137042,81826.0,81825.0,0.0003364]
[1743382723495,0.45727042,81826.0,81825.0,0.0003364]
[1743382726796,0.45727042,81826.0,81825.0,4e-07]
[1743382727175,0.438121,81826.0,81825.0,4e-07]
[1743382728432,0.45766185,81826.0,81825.0,4e-07]
[1743382729181,0.438121,81826.0,81825.0,4e-07]
[1743382730067,0.4572728,81826.0,81825.0,4e-07]
[1743382730276,0.377041,81826.0,81825.0,4e-07]
[1743382731136,0.331541,81826.0,81825.0,4e-07]
[1743382735400,0.01932,81826.0,81825.0,4e-07]
[1743382735558,0.031541,81826.0,81825.0,4e-07]
[1743382735767,0.331541,81826.0,81825.0,4e-07]
[1743382735967,0.331541,81826.0,81825.0,0.00925264]
[1743382736718,0.031541,81826.0,81825.0,0.00925264]
[1743382737075,0.0123892,81826.0,81825.0,4e-07]
[1743382740058,0.03153933,81826.0,81825.0,4e-07]
[1743382742538,0.33153933,81826.0,81825.0,4e-07]
[1743382744742,0.33153933,81826.0,81801.0,0.0828]
[1743382744743,0.256732,81797.0,81796.0,0.0003358]
[1743382744986,0.256732,81797.0,81796.0,0.00871654]
[1743382745396,0.27588546,81797.0,81796.0,0.00871654]
[1743382745804,0.26366046,81797.0,81796.0,0.00871654]
[1743382746025,0.26372377,81797.0,81796.0,0.00871654]
[1743382746228,0.01921677,81797.0,81796.0,0.00871654]
[1743382746387,6.331e-05,81797.0,81796.0,0.02094154]
[1743382747633,6.331e-05,81797.0,81796.0,0.16618239]
[1743382751450,0.01921474,81797.0,81796.0,0.15164154]
[1743382755868,0.05970669,81805.0,81798.0,0.012225]
[1743382756072,0.05970669,81805.0,81799.0,0.12028483]
[1743382756297,0.244483,81806.0,81799.0,0.37701083]
[1743382756477,0.244483,81806.0,81800.0,0.012224]
[1743382757077,0.244483,81806.0,81801.0,0.244495]
[1743382757317,0.244483,81806.0,81802.0,0.15264]
[1743382757509,0.012222,81813.0,81802.0,0.15264]
[1743382757510,0.01222,81829.0,81803.0,0.14645083]
[1743382757687,0.01420951,81823.0,81817.0,0.244447]
[1743382757888,0.3,81827.0,81803.0,0.47470998]
[1743382757889,0.244456,81814.0,81803.0,0.47470998]
[1743382758091,0.012222,81815.0,81796.0,0.00047733]
[1743382758092,0.012225,81797.0,81796.0,0.00047733]
[1743382758343,0.012225,81795.0,81775.0,0.000336]
[1743382758636,0.556738,81795.0,81775.0,0.000336]
[1743382758802,0.3,81795.0,81791.0,0.012226]
[1743382758996,0.3,81795.0,81785.0,0.012227]
[1743382758997,0.312225,81795.0,81785.0,0.25677]
[1743382759200,0.556738,81795.0,81782.0,0.012227]
[1743382759353,0.556738,81795.0,81781.0,0.0765]
[1743382759553,0.556738,81795.0,81775.0,0.257136]
[1743382759759,0.556738,81795.0,81777.0,0.012228]
[1743382760000,0.556738,81795.0,81778.0,0.012228]
[1743382760207,0.556738,81795.0,81780.0,0.012227]
[1743382760410,0.556738,81795.0,81782.0,0.012227]
[1743382760633,0.57589411,81795.0,81783.0,0.012227]
[1743382761403,0.57589411,81795.0,81778.0,0.164868]
[1743382761825,0.57589411,81795.0,81781.0,0.012227]
[1743382762070,0.33138111,81795.0,81784.0,0.256772]
[1743382762468,0.33138111,81795.0,81784.0,0.012227]
[1743382762734,0.35389201,81795.0,81786.0,0.012227]
[1743382762939,0.35389201,81795.0,81782.0,0.244551]
[1743382763135,0.35389201,81795.0,81781.0,0.012227]
[1743382763339,0.35389201,81795.0,81780.0,0.15264]
[1743382763725,0.35389201,81795.0,81775.0,0.000336]
[1743382763868,0.35389201,81795.0,81780.0,0.15264]
[1743382766916,0.35389201,81795.0,81775.0,0.000336]
[1743382767137,0.3347359,81795.0,81775.0,0.000336]
[1743382767343,0.5904988,81795.0,81775.0,0.000336]
[1743382767817,0.5904988,81795.0,81775.0,0.012564]
[1743382769693,0.5904988,81795.0,81775.0,0.000336]
[1743382770154,0.60965533,81795.0,81775.0,0.000336]
[1743382771951,0.60965533,81795.0,81775.0,0.244909]
[1743382772267,0.60965533,81795.0,81775.0,0.000336]
[1743382772784,0.61865362,81795.0,81775.0,0.000336]
[1743382774484,0.61865362,81795.0,81775.0,0.012564]
[1743382774685,0.61865362,81795.0,81775.0,0.000336]
[1743382775447,0.61865362,81795.0,81776.0,0.24457]
[1743382776278,0.61737362,81795.0,81776.0,0.24457]
[1743382776893,0.61737362,81795.0,81775.0,0.012564]
[1743382777100,0.59821709,81795.0,81775.0,0.012564]
[1743382777831,0.59821709,81795.0,81794.0,8e-07]
[1743382777832,0.67541709,81795.0,81794.0,8e-07]
[1743382778034,0.256798,81776.0,81775.0,0.000336]
[1743382778237,0.256798,81776.0,81775.0,0.00039931]
[1743382778869,0.2793089,81776.0,81775.0,0.00039931]
[1743382779270,0.2905588,81776.0,81775.0,0.00039931]
[1743382779899,0.29955709,81776.0,81775.0,0.00039931]
[1743382780092,0.31871563,81776.0,81775.0,0.00039931]
[1743382781072,0.07633523,81776.0,81775.0,0.00039931]
[1743382781324,0.07633523,81776.0,81775.0,0.02529744]
[1743382782603,0.06191763,81776.0,81775.0,0.03752544]
[1743382782798,0.06191763,81776.0,81775.0,0.11822544]
[1743382783032,0.05291934,81776.0,81775.0,0.16372544]
[1743382787156,0.0337608,81776.0,81775.0,0.16372544]
[1743382789987,0.0529168,81776.0,81775.0,0.16372544]
[1743382790190,0.0416669,81776.0,81775.0,0.16372544]
[1743382791601,0.0225109,81776.0,81775.0,0.10599744]
[1743382792418,0.0225109,81776.0,81775.0,0.36279844]
[1743382793308,0.0225109,81776.0,81775.0,0.10599744]
[1743382793481,0.0225109,81776.0,81775.0,0.36279844]
[1743382793644,0.03378925,81776.0,81775.0,0.36279844]
[1743382793848,0.03378925,81776.0,81775.0,0.11822544]
[1743382794083,0.03378925,81776.0,81775.0,0.36279844]
[1743382794471,0.03378925,81776.0,81775.0,0.11822544]
[1743382795573,0.03378925,81776.0,81775.0,0.12720994]
[1743382795721,0.03378925,81776.0,81775.0,0.14175079]
[1743382796527,0.03378925,81776.0,81775.0,0.60655079]
[1743382797286,0.03378925,81776.0,81775.0,0.90655079]
[1743382797467,0.0001683,81790.0,81775.0,1.03183562]
[1743382797639,0.0001683,81790.0,81789.0,0.39959785]
[1743382797893,0.0001683,81790.0,81789.0,0.55203785]
[1743382798425,0.0001683,81790.0,81789.0,0.97133785]
[1743382799041,0.0001683,81790.0,81789.0,1.27133785]
[1743382799250,3e-07,81790.0,81789.0,1.51690751]
[1743382799466,3e-07,81790.0,81789.0,1.54190751]
[1743382799669,5e-07,81796.0,81795.0,0.70457885]
[1743382799871,5e-07,81796.0,81795.0,0.82486368]
[1743382800077,5e-07,81796.0,81795.0,0.94055689]
[1743382800289,7e-07,81805.0,81804.0,0.55671]
[1743382800488,3.9e-07,81826.0,81824.0,0.012221]
[1743382800719,3.9e-07,81826.0,81825.0,0.68334545]
[1743382800925,3.9e-07,81826.0,81825.0,0.70579998]
[1743382801310,3.9e-07,81826.0,81825.0,0.71994013]
[1743382801767,0.00014191,81826.0,81825.0,0.71994013]
[1743382802370,0.00014191,81826.0,81825.0,0.74444309]